Cogmind - Beta 9 @@@ ROGUE MODE // 2019.10.27 @ 20:21:56 Player: ModulinMyGlobulin Result: Self-destructed Performance ------------- Evolutions (1) 500 Regions Visited (2) 400 Robots Destroyed (11) 55 Value Destroyed (300) 300 Prototype IDs (0) 0 Alien Tech Used (0) 0 Bonus (0) 0 TOTAL SCORE: 1255 Bonus ------- None Cogmind --------- Core Integrity 378/400 Matter 300/300 Energy 250/250 System Corruption 0% Temperature Cool (18) Location -9/Materials Parts ------- Power (1) Ion Engine Propulsion (4) Aluminum Leg Utility (2) Large Storage Unit Weapon (2) Inventory (10) Aluminum Leg Aluminum Leg Aluminum Leg Heat Sink Small Storage Unit Large Storage Unit Medium Battery (200) Peak State ------------ Power Ion Engine Propulsion Aluminum Leg Aluminum Leg Aluminum Leg Aluminum Leg Utility Small Storage Unit Large Storage Unit Weapon Small Laser Small Laser Inventory Aluminum Leg Aluminum Leg Heat Sink Large Storage Unit Medium Battery Light Assault Rifle [Rating: 9] Favorites ----------- Power Ion Engine Engine Ion Engine Propulsion Aluminum Leg Leg Aluminum Leg Utility Small Storage Unit Device Heat Sink Storage Small Storage Unit Weapon Small Laser Energy Gun Small Laser Ballistic Gun Light Assault Rifle Special Melee Weapon Datajack Build | -11 -10 -9 ------- Run | Scr Mat Mat Slots Evolved 2 | . . 2 Power . | . . . Propulsion 2 | . . 2 Utility . | . . . Weapon . | . . . Parts Attached 13 | 1 6 6 Power 1 | . 1 . Engine 1 | . 1 . Core . | . . . Reactor . | . . . Propulsion 4 | . 2 2 Treads . | . . . Leg 4 | . 2 2 Wheel . | . . . Hover . | . . . Flight . | . . . Utility 3 | 1 1 1 Device 1 | . . 1 Storage 2 | 1 1 . Processor . | . . . Hackware . | . . . Protection . | . . . Artifact . | . . . Weapon 5 | . 2 3 Energy Gun 3 | . 1 2 Energy Cannon . | . . . Ballistic Gun 1 | . . 1 Ballistic Cannon . | . . . Launcher . | . . . Special Weapon . | . . . Impact Weapon . | . . . Slashing Weapon . | . . . Piercing Weapon . | . . . Special Melee Weapon 1 | . 1 . Unidentified Prototypes . | . . . Parts Lost 12 | . 4 8 Power 1 | . 1 . Propulsion 4 | . 1 3 Utility 1 | . . 1 Weapon 6 | . 2 4 Highest Loss Streak 8 | . 3 8 Average Slot Usage (%) 96 | . 96 99 Engine 12 | . 13 11 Leg 31 | . 27 44 Storage 25 | . 28 18 Energy Gun 19 | . 19 20 Ballistic Gun 5 | . 6 . Naked Turns . | . . . Heaviest Build 27 | 13 26 27 Greatest Support 40 | 20 20 40 Greatest Overweight (x) 1 | . 1 1 Average Overweight (x) . | . . . Largest Inventory Capacity 12 | 8 12 12 Average Capacity 8 | 6 8 11 Most Carried 9 | 6 9 8 Average Carried 6 | 6 7 6 Final Capacity 10 | . . 10 Final Carried 7 | . . 7 Class Distribution -------------------- 78% | Mutant 21% | Scavenger-Mutant Dominant Class ---------------- Mutant | -10/Materials Scavenger-Mutant | -9/Materials Resources | -11 -10 -9 ----------- Run | Scr Mat Mat Matter Collected 299 | 214 51 34 Remotely . | . . . Salvage Created 441 | 89 281 71 Parts 22 | 2 14 6 Haulers Intercepted . | . . . Recyclers Shooed . | . . . Parts Field Recycled . | . . . Retrieved Matter . | . . . Parts Self-Destructed . | . . . Prevented . | . . . Kills | -11 -10 -9 ------- Run | Scr Mat Mat Combat Hostiles Destroyed 10 | . 8 2 Guns 10 | . 8 2 Classes Destroyed 3 | 1 2 . Recycler 1 | 1 . . Swarmer 3 | . 3 . Grunt 7 | . 5 2 Best Kill Streak 2 | 1 2 1 Combat Bots Only 2 | . 2 1 Max Kills in Single Turn 1 | 1 1 1 Gunslinging . | . . . Exploded . | . . . Melee . | . . . Uniques/NPCs Destroyed . | . . . Combat | -11 -10 -9 -------- Run | Scr Mat Mat Damage Taken 1000 | . 571 429 Core 126 | . 104 22 Absorbed by Shields . | . . . Core Remaining (%) 79 | 100 58 . Volleys Fired 44 | 4 31 9 Largest 2 | 2 2 2 Hottest 80 | 60 80 80 Shots Fired 83 | 8 60 15 Gun 83 | 8 60 15 Cannon . | . . . Launcher . | . . . Special . | . . . Kinetic 19 | 4 11 4 Thermal 64 | 4 49 11 Explosive . | . . . Electromagnetic . | . . . Robot Hit Streak 15 | 5 15 9 Robot Miss Streak 3 | 1 3 1 Penetration Max . | . . . Secondary Targets . | . . . Shots Hit Robots 57 | 6 38 13 Core Hits 21 | 2 14 5 Critical Hits . | . . . Critical Kills . | . . . Critical Parts Destroyed . | . . . Melee Attacks 1 | . 1 . Impact . | . . . Slashing . | . . . Piercing . | . . . Sneak Attacks . | . . . Combat Hostiles . | . . . Follow-up Attacks . | . . . Damage Inflicted 641 | 67 437 137 Guns 641 | 67 437 137 Cannons . | . . . Explosions . | . . . Melee . | . . . Ramming . | . . . Kinetic 69 | 24 9 36 Thermal 572 | 43 428 101 Explosive . | . . . Electromagnetic . | . . . Impact . | . . . Slashing . | . . . Piercing . | . . . Highest Corruption . | . . . Average Corruption . | . . . Corruption Purged . | . . . Overload Shots . | . . . Overflow Damage . | . . . Projectiles . | . . . Explosions . | . . . Melee . | . . . Knockbacks . | . . . Impact . | . . . Kinetic . | . . . Secondary . | . . . Self-Inflicted Damage . | . . . Shots . | . . . Rammed . | . . . Targets Rammed . | . . . Kicked . | . . . Crushed . | . . . Highest Temperature 219 | 20 219 12 Average Temperature 63 | 15 74 5 Received Heat Transfer 447 | . 258 189 Siege Activations . | . . . Robots Corrupted . | . . . Combat Hostiles . | . . . Parts Fried . | . . . Impact Corruptions . | . . . Robots Melted . | . . . Combat Hostiles . | . . . Parts Melted 1 | . 1 . Heat Transferred 1300 | 100 975 225 Parts Sabotaged . | . . . Parts Stolen . | . . . Parts Stripped . | . . . Power Chain Reactions . | . . . Missiles Intercepted . | . . . Alert | -11 -10 -9 ------- Run | Scr Mat Mat Peak Influence 238 | 5 238 92 Average Influence 88 | 3 106 50 Maximum Alert Level 1 | . 1 . Low Security (%) 91 | . . . Level 1 8 | . . . Level 2 . | . . . Level 3 . | . . . Level 4 . | . . . Level 5 . | . . . High Security . | . . . Max Security . | . . . Squads Dispatched 4 | . 2 2 Investigation . | . . . Extermination . | . . . Reinforcement 4 | . 2 2 Assault . | . . . Garrison . | . . . Intercept . | . . . Construction Impeded . | . . . Haulers Reinforced . | . . . Stealth | -11 -10 -9 --------- Run | Scr Mat Mat Distress Signals 2 | . 2 . Communications Jammed . | . . . Distress Signals . | . . . Times Spotted 29 | . 19 10 Peak Tracking Total 8 | . 7 8 Tactical Retreats 4 | . 4 . Traps | -11 -10 -9 ------- Run | Scr Mat Mat Traps Triggered . | . . . Indirectly . | . . . Trap Hack Attempts . | . . . Triggered . | . . . Disarmed . | . . . Reprogrammed . | . . . Reused . | . . . Traps Extracted . | . . . Installed . | . . . Triggered . | . . . Machines | -11 -10 -9 ---------- Run | Scr Mat Mat Machines Disabled . | . . . Max in Single Turn . | . . . Machines Sabotaged . | . . . Garrisons Compromised . | . . . Overloaded Fab Kills . | . . . Fab Network Shutdowns . | . . . Hacking | -11 -10 -9 --------- Run | Scr Mat Mat Machines Accessed 2 | . 1 1 Terminals 2 | . 1 1 Fabricators . | . . . Repair Stations . | . . . Recycling Units . | . . . Scanalyzers . | . . . Garrison Access . | . . . Total Hacks 5 | . 2 3 Successful 2 | . . 2 Failed 3 | . 2 1 Catastrophic . | . . . Database Lockouts . | . . . Manual . | . . . Terminals 5 | . 2 3 Fabricators . | . . . Repair Stations . | . . . Recycling Units . | . . . Scanalyzers . | . . . Garrison Access . | . . . Terminal Hacks 2 | . . 2 Branch Access Points 1 | . . 1 Alert Level 1 | . . 1 Fabricator Hacks . | . . . Repair Station Hacks . | . . . Recycling Unit Hacks . | . . . Scanalyzer . | . . . Garrison Access Hacks . | . . . Unauthorized Hacks . | . . . Terminals . | . . . Fabricators . | . . . Repair Stations . | . . . Recycling Units . | . . . Scanalyzers . | . . . Garrison Access . | . . . Data Cores Recovered . | . . . Used . | . . . Hacking Detections 1 | . 1 . Full Trace Events . | . . . Feedback Events . | . . . Feedback Blocked . | . . . Robot Schematics Acquired . | . . . Robots Built . | . . . Matter . | . . . Time . | . . . Total Robot Build Rating . | . . . Part Schematics Acquired . | . . . Parts Built . | . . . Matter . | . . . Time . | . . . Total Part Build Rating . | . . . Parts Repaired . | . . . Time . | . . . Parts Recycled . | . . . Recycled Matter . | . . . Retrieved Matter . | . . . Retrieved Components . | . . . Parts Scanalyzed . | . . . Part Schematics Acquired . | . . . Parts Damaged . | . . . Bothacking | -11 -10 -9 ------------ Run | Scr Mat Mat Used RIF Installer . | . . . Robots Hacked . | . . . Non-combat . | . . . Combat . | . . . Robot Hacks Applied . | . . . Relay Couplers Released . | . . . Robots Rewired . | . . . Allies Hacked . | . . . Hacks Repelled . | . . . Allies | -11 -10 -9 -------- Run | Scr Mat Mat Total Allies . | . . . Largest Group . | . . . Highest-Rated Group . | . . . Highest-Rated Ally . | . . . Total Orders . | . . . Ally Attacks . | . . . Total Damage . | . . . Kills . | . . . Allies Corrupted . | . . . Allies Melted . | . . . Intel | -11 -10 -9 ------- Run | Scr Mat Mat Robot Analysis Total . | . . . Derelict Logs Recovered . | . . . Drone Launches . | . . . Drone Recoveries . | . . . Exploration | -11 -10 -9 ------------- Run | Scr Mat Mat Turns Passed 598 | 28 424 146 Spaces Moved 285 | 13 185 87 Core . | . . . Treads . | . . . Legs 285 | 13 185 87 Wheels . | . . . Hover . | . . . Flight . | . . . Fastest Speed 120 | 120 120 120 Average Speed 122 | 120 123 120 Slowest Speed 150 | 120 150 150 Overloaded Moves . | . . . Propulsion Burnouts . | . . . Robots Hopped . | . . . Cave-ins Triggered . | . . . Exploration Rate (%) 15 | 3 33 11 Regions Visited 2 Branch Regions . Pre-discovered Areas . | . . . Known Exits Taken . | . . . Unknown Exits Taken 2 | 1 1 . Scrap Searched . | . . . Spaces Dug . | . . . Terrain Destroyed . | . . . Melee . | . . . Projectile . | . . . AOE . | . . . Actions | -11 -10 -9 --------- Run | Scr Mat Mat Total 460 | 17 330 113 Wait 97 | . 88 9 Move 283 | 12 184 87 Hop . | . . . Pick Up 13 | . 11 2 Fast Attach 4 | 1 2 1 Attach 6 | . 2 4 Detach . | . . . Swap 3 | . 2 1 Drop 9 | . 9 . Fire 44 | 4 31 9 Melee 1 | . 1 . Ram . | . . . Kick . | . . . Crush . | . . . Escape Stasis . | . . . Rewire . | . . . Trap . | . . . Miscellaneous . | . . . Route ------- -11/Scrapyard -10/Materials -9/Materials (discovered 2 exits: *Min x2) History --------- Turn | Location | Event 13 | -11/Scrapyard | Discovered new exit (range 3) 29 | -11/Scrapyard | Entered Materials 271 | -10/Materials | Lost 3 parts (1p1n1w) 307 | -10/Materials | Build established: Mutant 324 | -10/Materials | Discovered new exit (range 5) 453 | -10/Materials | Entered another Materials area 453 | -9/Materials | Evolved 2 slots: Propulsion x2 473 | -9/Materials | Identified exit to Mines 599 | -9/Materials | Self-destructed Last Messages --------------- 00479_ Destroyed Hacking Suite. 00527_ G-34 Mercenary destroyed. 00532_ Acquired Aluminum Leg. 00535_ Acquired Heat Sink. 00538_ Acquired 30 matter. 00564_ O-16 Technician: "IFF HANDSHAKE FAILED. SECURING TERMINAL." 00570_ ALERT: Hostiles spotted, dispatching reinforcements to Terminal M001. 00579_ Sml. Laser destroyed. 00585_ G-34 Mercenary destroyed. 00588_ Acquired Sml. Laser. 00593_ K-01 Serf collects debris. 00593_ Aluminum Leg destroyed. 00593_ Lgt. Assault Rifle destroyed. 00596_ Sml. Laser destroyed. 00597_ Aluminum Leg destroyed. 00597_ K-01 Serf collects debris. 00598_ Acquired 4 matter. 00599_ Heat Sink destroyed. 00599_ Aluminum Leg destroyed. Map ----- +----------------------------------------------------+ | ?????????????????????????????????????????????????? | | ?????????????????????????????????????????????????? | | ?????????????????????????????????????????????????? | | ?????????????????????????????????????????????????? | | ?????????????????????????????????????????????????? | | ?????????????????????????????????????????????????? | | ???????????????????????????????????????#+#???????? | | ???????????????????????????????? ]? ???????? | | ?????????????????????????? ??? ]] ???????? | | ?????????????????????????? ??? ]] ???????? | | ?????????????????????????? ?? /??????? | | ?????????????????????????? ?? #??????? | | ??????????????????????????g ?? #??????? | | ?????????????????????????? ?? [/!#??????? | | ??????????????????????????g ?? [/!#??????? | | ?????????????????????#####/###g## //!#??????? | | ?????????????????????# ## #??????? | | ?????????????????????# [[ ## #??????? | | ?????????????????????# [[ + """"" #??????? | | ?????????????????????# ## """"" #?###??? | | ?????????????????????# ## """"" ###T#### | | ?????????????????????# ## # | | ?????????????????????# * + # | | ?????????????????????# = = ######## # | | ?????????????????????####/######???########### # | | ????????????????????????#@#????????# # # | | ????????????????????????# #????????# """ """ # # | | ???????????????????????? Y ????????# """ """ # # | | ???????????????????????? ????????# """ """ # | | ??????????????????????? > ???????# """ """ + | | ??????????????????????? ???????# # | | ??????????????????????# #??????# ##### | | ??????????????????????#######??????# #???? | | ???????????????????????????????????###########???? | | ?????????????????????????????????????????????????? | | ?????????????????????????????????????????????????? | | ?????????????????????????????????????????????????? | | ?????????????????????????????????????????????????? | | ?????????????????????????????????????????????????? | | ?????????????????????????????????????????????????? | | ?????????????????????????????????????????????????? | | ?????????????????????????????????????????????????? | | ?????????????????????????????????????????????????? | | ?????????????????????????????????????????????????? | | ?????????????????????????????????????????????????? | | | | | | | | | | | +----------------------------------------------------+ Best States ------------- Heat Dissipation 38 Energy Generation 10 Energy Capacity 250 Matter Stores 300 Matter Capacity 300 Sight Range 16 Terrain Scan Density 10 Evasion (%) 40 Item Schematics ----------------- None Robot Schematics ------------------ None Fabricated ------------ Nothing Alien Tech Used ----------------- None Achievements -------------- None Challenges ------------ None Game ------ Seed RecyclingCloakSword Manual? 0 Play Time 00:05:34 Cumulative 46.5 hours Start 2019.10.27 @ 19:42:16 End 2019.10.27 @ 20:21:56 Sessions 3 Manual Loads 0 Difficulty Rogue Special Mode None Game No. 126 Rogue 126 Adventurer 0 Explorer 0 Win Type - Total 0 Types 0/0/0/0/0/0/0 Lore% 34 Gallery% 39 Achievement% 21 Wizard Run 0 Options --------- ASCII 0 Keyboard 0 Movement Numpad Keybinds 0 Fullscreen 1 Font 18/SmallcapsGlow Map View 76x50 Tactical HUD 1 Map Filters NONE Filters NONE Steam 1 RUN: e71d1168-6954-4579-8abe-a700ec49b833